bitfinex-derivatives/quotes_ETHF0:USTF0_20260128
["timestamp","ask_amount","ask_price","bid_price","bid_amount"]
[1769634033090,3.90983168,3015.2,3014.2,1.49066725]
[1769634033290,3.90983168,3015.1,3014.2,1.49066725]
[1769634033490,1.46435777,3015.3,3014.2,1.49066725]
[1769634033686,3.91003057,3015.2,3014.2,1.49066725]
[1769634033880,3.9549209,3015.6,3014.2,1.49066725]
[1769634033881,3.91003057,3015.1,3014.2,1.49066725]
[1769634034081,1.46435777,3015.6,3014.4,1.49066725]
[1769634034387,1.46435777,3015.9,3014.4,1.49066725]
[1769634034588,3.91056605,3015.8,3014.6,1.49066725]
[1769634034787,3.91056605,3015.7,3014.6,1.65675725]
[1769634034992,3.91056605,3015.6,3014.6,1.65675725]
[1769634035288,1.46435777,3016.2,3014.8,1.49066725]
[1769634035493,3.90989291,3016.1,3015.1,1.49066725]
[1769634035696,1.46435777,3016.5,3015.1,1.65672725]
[1769634035892,3.91012123,3016.4,3015.1,1.65672725]
[1769634036090,1.46435777,3016.9,3015.6,1.49066725]
[1769634036394,3.90689206,3016.8,3015.6,1.65670725]
[1769634036594,3.90689206,3016.7,3015.6,1.65670725]
[1769634036895,1.46435777,3016.9,3015.6,1.65670725]
[1769634037391,3.9549209,3017.6,3015.8,1.49066725]
[1769634037602,3.90388671,3017.5,3016.3,1.49066725]
[1769634037789,1.46435777,3017.7,3016.2,0.166]
[1769634037990,3.73961404,3017.4,3014.2,3.29950056]
[1769634038297,0.25240854,3015.0,3012.1,9.91300519]
[1769634038601,0.25240854,3014.7,3012.1,0.1690468]
[1769634038796,4.19187333,3014.7,3012.1,0.1690468]
[1769634038998,3.9043435,3014.6,3012.1,0.0028168]
[1769634039203,0.00394082,3015.0,3013.1,0.16618]
[1769634039398,4.03643676,3014.9,3013.1,0.16618]
[1769634039606,0.00394082,3015.0,3013.4,0.16616]
[1769634039792,0.00394082,3015.0,3013.5,1.88297784]
[1769634039999,3.93946479,3016.2,3014.1,1.88100743]
[1769634040300,0.30526521,3016.0,3013.8,1.93816137]
[1769634040502,3.93946479,3014.9,3013.3,1.93816137]
[1769634040804,0.30526521,3014.3,3012.9,1.93816137]
[1769634041003,4.07961741,3014.2,3012.9,1.93816137]
[1769634041308,4.07961741,3014.1,3012.9,1.93816137]
[1769634041607,4.07961741,3014.0,3012.9,1.93816137]
[1769634041798,4.07961741,3013.9,3012.9,1.93816137]
[1769634041996,0.00382326,3014.3,3012.9,1.93816137]
[1769634042298,4.07401639,3014.2,3012.9,1.93816137]
[1769634042499,4.07401639,3014.1,3012.9,1.93816137]
[1769634042699,4.07401639,3014.0,3012.9,1.93816137]
[1769634042900,4.82193583,3013.9,3012.8,3.321]
[1769634043100,4.07401639,3013.8,3012.8,3.321]
[1769634043305,0.74791944,3013.9,3012.1,1.76780367]
[1769634043306,0.78304279,3013.6,3012.1,1.76780367]
[1769634043606,4.07401639,3013.5,3012.1,1.76780367]
[1769634043798,4.07401639,3013.4,3012.1,1.76780367]
[1769634043997,0.16623,3012.3,3009.6,11.22247516]
[1769634044196,1.58697733,3013.1,3010.0,0.16635]
[1769634044197,4.27583471,3012.2,3010.0,0.16635]
[1769634044403,4.27583471,3012.2,3009.2,1.948]
[1769634044404,3.92998324,3012.7,3010.5,0.16632]
[1769634044597,4.28443739,3012.6,3009.8,0.05780496]
[1769634044793,3.92998324,3013.1,3010.3,1.58697733]
[1769634044994,4.28516572,3013.0,3010.3,1.58965716]
[1769634045203,0.63306749,3012.8,3010.3,0.00267983]
[1769634045407,4.28516572,3012.7,3010.4,0.16632]
[1769634045702,4.28516572,3012.6,3010.4,0.16632]
[1769634045901,4.95276343,3012.5,3010.4,0.16632]
[1769634046105,4.28516572,3012.4,3010.5,1.86047955]
[1769634046300,5.09054763,3013.1,3010.3,0.00267983]
[1769634046301,0.81071762,3013.3,3011.1,1.80495389]
[1769634046500,4.27335235,3013.2,3011.1,1.80495389]
[1769634046700,4.27335235,3013.1,3011.1,1.80495389]
[1769634046903,3.92998324,3013.6,3011.5,1.80495389]
[1769634047105,4.74070086,3014.1,3011.9,1.80495389]
[1769634047298,4.27338692,3014.0,3011.9,1.80495389]
[1769634047496,0.83863211,3013.8,3011.9,1.80495389]
[1769634047809,0.83863211,3013.5,3011.9,1.80495389]
[1769634048011,4.27338692,3013.4,3011.9,1.80495389]
[1769634048208,5.11708837,3013.3,3011.9,1.80495389]
[1769634048408,4.27338692,3013.2,3011.9,1.80495389]
[1769634048612,0.84370145,3013.0,3011.0,1.81996679]
[1769634048911,1.00986145,3013.4,3011.0,1.81996679]
[1769634049115,5.11440355,3013.3,3011.0,1.81996679]
[1769634049304,0.88486122,3013.1,3011.0,1.81996679]
[1769634049504,4.26827556,3013.0,3011.0,1.81996679]
[1769634049704,0.88486122,3013.1,3011.0,1.81996679]
[1769634050003,0.88486122,3012.9,3011.0,1.81996679]
[1769634050204,0.88486122,3012.7,3011.0,1.81996679]
[1769634050615,4.26462968,3012.6,3010.4,1.76120287]
[1769634050903,1.05468462,3012.1,3010.4,1.76120287]
[1769634051105,0.00298264,3012.1,3010.4,1.92753287]
[1769634052204,1.13329754,3012.1,3010.4,1.76120287]
[1769634052407,1.1303149,3011.9,3010.4,1.76120287]
[1769634052711,1.1303149,3011.8,3010.4,1.76120287]
[1769634053006,1.1303149,3011.5,3009.9,1.76906335]
[1769634053211,1.1303149,3011.3,3009.9,1.76906335]
[1769634053709,0.16626,3011.6,3009.9,1.76906335]
[1769634054006,1.17081037,3011.4,3009.9,1.77314971]
[1769634054205,1.17081037,3011.2,3009.5,1.76438055]
[1769634054404,1.2289461,3011.0,3009.5,1.76438055]
[1769634055205,1.2289461,3011.0,3009.5,1.76861687]
[1769634055710,2.27044033,3010.9,3009.4,0.53485484]
[1769634056808,2.27044033,3010.9,3009.0,0.1664]
[1769634057310,3.92998324,3011.4,3008.1,1.949]
[1769634057311,2.27342297,3012.1,3010.0,0.16634]
[1769634057607,2.43670033,3011.6,3008.1,1.949]
[1769634057806,2.27044033,3011.2,3009.0,2.29538505]
[1769634058015,2.27044033,3010.6,3008.6,0.00305801]
[1769634058309,40.8,3011.5,3007.6,3.324]
[1769634058310,1.75332733,3010.0,3008.1,2.29538505]
[1769634058514,2.27044033,3009.9,3007.7,2.29538505]
[1769634058905,2.27044033,3009.9,3008.0,32.29538505]
[1769634059212,2.27044033,3009.9,3008.1,2.29538505]
[1769634059411,2.2739465,3009.9,3008.1,2.2986788]
[1769634059825,2.2739465,3009.9,3008.0,30.0]
[1769634060407,2.27044033,3010.6,3009.1,0.1664]
[1769634060715,2.27044033,3011.7,3010.0,0.16635]
[1769634060911,2.27044033,3012.2,3010.1,0.16634]
[1769634061411,2.27423978,3012.2,3010.1,0.1690207]
[1769634061623,2.27044033,3011.3,3008.9,0.16641]
[1769634061914,2.27044033,3011.3,3009.0,2.29538505]
[1769634062108,2.27044033,3010.8,3009.0,2.29538505]
[1769634062312,2.27044033,3010.6,3009.0,2.29538505]
[1769634062512,2.27044033,3010.6,3008.0,30.05784272]
[1769634062513,2.27044033,3010.6,3008.1,2.29538505]
[1769634062817,2.43677033,3010.4,3008.1,2.29538505]
[1769634063117,2.27044033,3010.4,3008.3,2.29538505]
[1769634063318,2.27044033,3010.4,3008.7,2.29538505]
[1769634063519,2.27044033,3010.4,3008.7,2.46180505]
[1769634063715,2.27044033,3011.3,3008.9,2.29538505]
[1769634064018,2.27044033,3010.6,3008.2,2.29538505]
[1769634064613,2.27044033,3010.6,3008.5,2.46181505]
[1769634064913,2.27044033,3010.6,3009.0,2.29538505]
[1769634065317,2.27044033,3010.6,3009.2,2.29538505]
[1769634066114,2.27044033,3011.0,3009.3,2.46177505]
[1769634066417,2.27044033,3011.0,3008.1,0.00325842]
[1769634066418,2.27044033,3011.0,3008.9,2.29538505]
[1769634066607,2.27044033,3011.0,3008.9,2.46179505]
[1769634067220,2.27044033,3010.8,3008.9,2.46179505]
[1769634067420,2.27044033,3010.6,3008.9,2.46179505]
[1769634067624,2.27044033,3010.6,3008.4,2.29538505]
[1769634067814,2.27044033,3010.4,3008.4,2.46182505]
[1769634068115,2.27044033,3010.4,3008.8,0.16641]
[1769634068316,2.27044033,3010.4,3008.9,2.29538505]
[1769634068519,2.27044033,3011.0,3008.9,2.46179505]
[1769634068710,2.27044033,3010.8,3008.9,2.46179505]
[1769634068913,6.51490203,3010.7,3009.4,0.16638]
[1769634069117,2.27044033,3011.3,3009.7,2.29538505]
[1769634069317,2.27044033,3011.1,3009.2,2.29538505]
[1769634069519,2.27044033,3010.9,3009.2,2.29538505]
[1769634069716,6.51944337,3010.8,3009.3,0.16639]
[1769634069923,4.24900304,3010.7,3009.3,2.46177505]
[1769634070118,6.51944337,3010.7,3009.3,2.29538505]
[1769634070317,6.51944337,3010.6,3009.3,2.29538505]
[1769634070524,2.27044033,3010.4,3009.0,2.29538505]
[1769634070824,2.27044033,3010.9,3009.2,2.29538505]
[1769634071023,6.52894404,3010.8,3009.2,2.46177505]
[1769634071327,4.25850371,3010.7,3009.6,2.46175505]
[1769634071618,2.27044033,3011.1,3009.6,2.46175505]
[1769634071916,4.26279023,3011.0,3009.6,2.46175505]
[1769634072120,6.20042357,3011.5,3009.9,2.46173505]
[1769634072421,2.27044033,3011.0,3009.2,2.29538505]
[1769634072619,2.27044033,3010.9,3009.2,2.29538505]
[1769634072821,2.27044033,3010.8,3009.2,2.29538505]
[1769634073022,4.26683658,3010.7,3009.2,2.29538505]
[1769634073225,2.27044033,3010.6,3009.2,2.29538505]
[1769634073521,2.27044033,3010.4,3009.2,2.29538505]
[1769634073724,2.27044033,3010.2,3008.8,2.46179505]
[1769634073913,4.26683658,3010.1,3008.8,2.46179505]
[1769634074121,2.27044033,3010.6,3009.0,2.29538505]
[1769634074316,2.27044033,3010.4,3009.0,2.29538505]
[1769634074517,6.48952734,3010.3,3009.0,2.29538505]
[1769634074726,4.21908701,3010.2,3009.2,2.46177505]
[1769634074924,7.25068832,3011.5,3009.2,2.46177505]
[1769634074925,6.20042357,3010.8,3009.2,2.46177505]
[1769634075219,4.21896477,3010.7,3009.5,0.16638]
[1769634075421,4.21896477,3010.6,3009.5,2.46176505]
[1769634075625,4.21896477,3010.5,3009.5,2.46176505]
[1769634075923,3.92998324,3011.1,3009.7,2.29538505]
[1769634076123,2.27044033,3011.2,3009.7,2.29538505]
[1769634076124,4.2210151,3011.0,3009.7,2.29538505]
[1769634076323,3.92998324,3011.5,3010.2,0.16633]
[1769634076518,6.20042357,3011.6,3010.2,2.46171505]
[1769634076828,2.27044033,3011.5,3009.6,2.29538505]
[1769634077025,2.27044033,3011.5,3010.3,0.16633]
[1769634077226,6.20042357,3011.5,3010.3,0.00353136]
[1769634077432,2.27044033,3011.1,3009.3,2.29538505]
[1769634077624,2.27044033,3010.9,3008.9,2.29538505]
[1769634077824,2.27044033,3010.9,3008.6,0.16642]
[1769634077825,2.27044033,3010.4,3008.6,0.16642]
[1769634078027,2.27044033,3010.4,3008.9,2.29538505]
[1769634078326,2.27044033,3010.4,3008.9,2.46179505]
[1769634078522,2.27044033,3010.4,3009.0,0.1664]
[1769634078722,2.27044033,3010.4,3008.9,2.29968641]
[1769634078723,3.92289817,3010.5,3009.3,2.29538505]
[1769634079020,2.27044033,3010.5,3009.2,0.16639]
[1769634079329,3.92289817,3010.5,3008.9,2.29968641]
[1769634079519,3.92289817,3010.5,3009.3,0.16639]
[1769634079825,3.92289817,3010.6,3009.4,0.16638]
[1769634081022,2.27044033,3010.5,3009.4,0.16638]
[1769634081223,3.92289817,3010.6,3009.2,2.29538505]
[1769634081424,2.27044033,3010.9,3009.8,0.16636]
[1769634081631,2.27044033,3010.4,3009.2,0.16639]
[1769634081829,2.27044033,3010.3,3009.2,0.16639]
[1769634082029,6.1933385,3010.1,3008.9,0.00430136]
[1769634082228,3.92289817,3009.4,3008.9,0.00430136]
[1769634082420,2.27044033,3009.3,3008.0,30.16646]
[1769634082617,3.92289817,3009.5,3008.1,2.46183505]
[1769634082924,2.27044033,3009.7,3008.0,30.0]
[1769634082925,3.92289817,3009.6,3008.4,2.46182505]
[1769634083321,6.1933385,3009.4,3008.4,0.00258352]
[1769634083522,2.27044033,3009.2,3008.4,0.00258352]
[1769634083933,2.27044033,3009.2,3008.0,30.0]
[1769634084132,2.27044033,3008.8,3008.0,30.0]
[1769634084334,3.92289817,3009.1,3008.0,30.0]
[1769634084626,2.27044033,3008.9,3008.0,30.0]
[1769634085131,2.27044033,3008.9,3008.0,30.00259532]
[1769634085830,3.92289817,3009.3,3008.1,3.11569996]
[1769634086038,0.00266361,3009.6,3008.2,3.11569996]
[1769634086330,3.3787828,3009.6,3008.0,30.00259532]
[1769634086526,3.37611919,3009.5,3008.0,30.00259532]
[1769634086727,3.37611919,3009.5,3008.0,33.18185186]
[1769634087035,3.37611919,3009.2,3008.0,30.00259532]
[1769634087229,29.48811041,3009.1,3008.0,30.00259532]
[1769634087434,3.37611919,3009.3,3008.0,30.00259532]
[1769634088335,3.24720958,3009.2,3008.0,30.00259532]
[1769634088530,3.24720958,3009.0,3008.0,30.00259532]
[1769634088827,4.12136504,3008.9,3008.0,30.00259532]
[1769634089028,3.24720958,3009.0,3008.0,30.00259532]
[1769634089226,3.24720958,3008.8,3008.0,30.00259532]
[1769634089427,7.36736448,3008.7,3008.0,30.00259532]
[1769634089636,3.24720958,3008.7,3008.0,30.00259532]
[1769634089832,7.36742369,3008.6,3008.0,30.00259532]
[1769634090029,3.24720958,3008.6,3008.0,30.00259532]
[1769634091641,3.24720958,3008.4,3008.0,18.2838679]
[1769634091829,29.48811041,3008.8,3007.1,3.25785315]
[1769634092030,4.11798655,3008.7,3007.1,3.42436315]
[1769634092238,4.11798655,3008.6,3007.1,3.42436315]
[1769634092534,4.11798655,3008.5,3007.3,3.49350069]
[1769634092743,0.41932226,3009.1,3007.5,3.49350069]
[1769634092744,29.48811041,3008.9,3007.5,3.49350069]
[1769634092931,4.11599754,3008.8,3007.5,3.49350069]
[1769634093128,4.11599754,3008.7,3007.5,3.49350069]
[1769634093436,29.48811041,3009.5,3008.0,3.49350069]
[1769634093639,4.11582596,3009.4,3008.0,3.49350069]
[1769634093836,4.11582596,3009.3,3008.0,3.49350069]
[1769634094035,4.11613962,3009.2,3008.3,3.49350069]
[1769634094227,29.91009628,3009.6,3008.3,3.49350069]
[1769634094538,0.49955181,3009.4,3007.7,3.45338592]
[1769634094734,29.48811041,3009.0,3007.7,3.45338592]
[1769634095038,33.60347313,3008.9,3007.7,3.45338592]
[1769634095234,33.60347313,3008.9,3005.2,9.91300519]
[1769634095235,0.49629128,3008.2,3006.9,3.45338592]
[1769634095435,29.48811041,3008.2,3006.9,3.45338592]
[1769634095635,5.40002375,3008.6,3006.9,3.45338592]
[1769634095636,29.48811041,3008.6,3006.9,3.61990592]
[1769634095834,4.1118813,3008.5,3006.9,3.61990592]
[1769634096034,4.1118813,3008.4,3006.9,3.45338592]
[1769634096246,4.1118813,3008.3,3006.9,3.45712154]
[1769634096531,29.48811041,3008.7,3006.9,3.62364154]
[1769634096737,4.10983592,3008.6,3006.9,3.62364154]
[1769634097038,4.10983592,3008.5,3007.1,3.40805304]
[1769634097237,42.98374759,3008.8,3007.1,3.40805304]
[1769634097442,4.69894342,3008.7,3007.1,3.40805304]
[1769634097646,0.59021756,3008.2,3006.9,0.00373562]
[1769634097934,30.07832797,3008.1,3006.9,0.00373562]
[1769634098128,4.69894342,3008.0,3006.9,0.00373562]
[1769634098328,4.10872586,3007.9,3006.9,0.00373562]
[1769634098646,0.50177847,3007.7,3006.3,3.40805304]
[1769634099138,0.50177847,3007.1,3004.7,3.45227259]
[1769634099330,2.0953085,3006.7,3004.7,3.45227259]
[1769634099534,0.50177847,3006.6,3004.7,3.45227259]
[1769634099838,0.50177847,3006.9,3004.7,3.45227259]
[1769634100035,3.92289817,3007.1,3004.9,3.61890259]
[1769634100036,4.59968955,3006.8,3004.9,3.61890259]
[1769634100234,0.50177847,3006.6,3004.9,3.45227259]
[1769634100435,0.50525902,3006.6,3004.9,3.45227259]
[1769634100631,0.00348055,3006.6,3005.2,3.62107786]
[1769634102337,0.00348055,3006.6,3005.4,3.49243036]
[1769634102542,0.42146292,3008.4,3006.1,3.65899036]
[1769634102840,4.09072941,3008.3,3006.1,3.65899036]
[1769634103040,44.89072941,3008.2,3006.1,3.65899036]
[1769634103339,40.8,3008.2,3006.1,3.49243036]
[1769634103545,40.8,3008.2,3005.5,1.952]
[1769634103546,0.00289615,3008.2,3006.4,3.49243036]
[1769634104035,0.42146292,3008.1,3006.4,3.49243036]
[1769634104343,0.44283822,3007.7,3006.0,3.48174272]
[1769634105240,0.44283822,3007.5,3006.0,3.48174272]
[1769634106044,0.44283822,3008.1,3006.2,3.48174272]
[1769634106245,4.45615836,3008.0,3006.2,3.48174272]
[1769634106444,0.44283822,3008.0,3006.2,3.48174272]
[1769634106645,2.13565813,3007.9,3006.2,3.48174272]
[1769634106846,2.13565813,3007.4,3005.5,3.43209778]
[1769634107037,0.5421281,3007.3,3005.5,3.43209778]
[1769634107945,0.5421281,3007.3,3005.5,3.59869778]
[1769634108341,2.17701774,3007.3,3005.5,3.59869778]
[1769634108643,1.59353003,3006.8,3005.5,3.43209778]
[1769634109035,2.17701774,3006.8,3005.5,3.43209778]
[1769634109240,0.58348771,3006.6,3005.0,3.41141797]
[1769634109445,1.59353003,3006.3,3005.0,3.41141797]
[1769634109833,2.17701774,3006.3,3005.0,3.41141797]
[1769634110037,40.8,3006.5,3005.0,3.41141797]
[1769634110238,4.01671404,3006.4,3005.0,3.41141797]
[1769634110542,0.77932656,3006.4,3005.0,3.41141797]
[1769634110941,2.37285659,3006.3,3005.0,3.41141797]
[1769634111248,40.96654,3006.5,3005.0,3.41141797]
[1769634111449,4.01893985,3006.4,3005.0,3.41141797]
[1769634111745,40.8,3006.5,3005.0,3.41141797]
[1769634112140,0.77932656,3006.7,3005.0,3.41141797]
[1769634112141,1.59353003,3006.8,3005.1,0.16662]
[1769634112354,0.77932656,3007.1,3005.2,3.47778744]
[1769634112543,44.82058933,3007.0,3005.3,0.16661]
[1769634112743,29.48811041,3007.5,3005.5,3.31117744]
[1769634113044,13.18306967,3008.3,3004.7,0.00393559]
[1769634113045,0.78396877,3007.1,3005.8,3.31117744]
[1769634113547,40.8,3007.4,3005.8,3.31117744]
[1769634113746,0.78396877,3007.0,3005.4,3.31117744]
[1769634114343,4.02292365,3006.9,3005.4,3.31117744]
[1769634114544,3.24720958,3006.5,3004.7,0.00393559]
[1769634115344,3.64312068,3006.3,3004.7,0.00393559]
[1769634115748,3.64312068,3006.7,3004.7,0.00393559]
[1769634115946,4.02207288,3006.6,3004.7,0.17057559]
[1769634116249,4.02207288,3006.5,3004.7,0.17057559]
[1769634116445,3.64312068,3006.3,3004.8,3.50504283]
[1769634117349,3.64312068,3006.3,3004.7,0.00393559]
[1769634117544,3.80969068,3006.1,3004.7,0.00393559]
[1769634117749,3.64312068,3005.9,3004.7,0.00393559]
[1769634117947,0.0033198,3005.9,3004.7,3.50897842]
[1769634118554,0.0033198,3005.9,3004.9,3.50504283]
[1769634118746,3.64312068,3006.7,3004.9,3.50504283]
[1769634118947,4.02522134,3006.6,3004.9,3.50504283]
[1769634119149,3.64312068,3006.7,3004.9,3.67167283]
[1769634119348,4.02711575,3006.6,3004.9,3.67167283]
[1769634119550,4.02711575,3006.5,3004.9,3.67167283]
[1769634119858,0.00339943,3006.5,3005.3,3.50504283]
[1769634120247,29.48811041,3007.2,3005.3,3.50504283]
[1769634120453,3.64312068,3007.5,3005.7,3.50504283]
[1769634120648,7.67326802,3007.4,3005.7,3.50504283]
[1769634120850,29.48811041,3007.2,3005.7,3.50504283]
[1769634121057,29.48811041,3007.2,3005.3,3.50504283]
[1769634121058,3.80964068,3006.9,3005.3,3.50504283]
[1769634121252,3.64312068,3006.7,3005.3,3.50504283]
[1769634121551,0.00271641,3006.9,3005.3,3.50504283]
[1769634121759,0.00271641,3006.9,3005.3,3.67165283]
[1769634122267,3.64312068,3006.5,3004.8,3.50504283]
[1769634122557,3.64312068,3006.3,3004.8,3.50504283]
[1769634122758,4.03170717,3006.2,3004.8,3.50504283]
[1769634122948,4.03170717,3006.1,3004.8,3.50504283]
[1769634123249,4.03538879,3006.0,3004.8,3.50504283]
[1769634123559,29.48811041,3006.6,3004.8,3.50504283]
[1769634123756,4.03546329,3006.5,3004.8,3.50504283]
[1769634124053,3.64312068,3006.4,3004.8,3.50504283]
[1769634124249,4.03546329,3006.3,3004.8,3.50504283]
[1769634124451,4.03546329,3006.2,3004.8,3.50504283]
[1769634124652,3.64312068,3006.1,3004.8,3.50504283]
[1769634124854,33.13123109,3006.1,3004.8,3.50504283]
[1769634125055,4.03546329,3006.1,3004.8,3.50504283]
[1769634125358,7.67858397,3006.1,3004.8,3.50504283]
[1769634125564,4.03546329,3006.0,3004.8,3.50504283]
[1769634125957,3.92289817,3006.3,3004.8,3.50504283]
[1769634125958,29.48811041,3006.3,3004.8,3.50504283]
[1769634126158,4.04432256,3006.2,3004.8,3.50504283]
[1769634126458,4.04432256,3006.1,3004.8,3.50504283]
[1769634126658,29.48811041,3006.6,3005.3,3.50504283]
[1769634126856,29.48811041,3006.8,3005.3,3.50504283]
[1769634127153,33.13123109,3006.6,3005.3,3.50504283]
[1769634127345,33.13123109,3006.4,3004.9,3.50504283]
[1769634127550,3.64312068,3006.3,3004.9,3.50504283]
[1769634127748,3.64312068,3006.3,3004.7,0.00393559]
[1769634127958,33.13123109,3006.1,3004.7,3.50897842]
[1769634128155,3.64312068,3006.0,3004.7,3.50897842]
[1769634128456,29.48811041,3006.1,3004.7,3.50897842]
[1769634129046,29.48811041,3006.0,3004.7,3.50897842]
[1769634129660,3.64312068,3005.9,3004.7,3.50897842]
[1769634130156,3.64312068,3005.6,3004.7,0.00393559]
[1769634130757,33.13123109,3005.5,3004.7,0.00061579]
[1769634131153,33.13123109,3005.5,3004.4,1.58840419]
[1769634131154,3.64312068,3005.0,3004.4,1.58840419]
[1769634131461,3.64312068,3004.9,3003.4,3.50504283]
[1769634132157,3.64312068,3004.9,3003.4,3.50930112]
[1769634132460,33.13123109,3005.3,3003.4,3.50930112]
[1769634132661,29.48811041,3005.5,3003.7,3.50504283]
[1769634132960,29.48811041,3005.5,3003.4,0.00425829]
[1769634132961,3.64312068,3005.7,3004.3,3.50504283]
[1769634133352,29.48811041,3005.8,3004.3,3.50504283]
[1769634133555,29.48811041,3005.9,3004.3,3.50504283]
[1769634133956,33.41100858,3006.0,3004.3,3.50504283]
[1769634134149,29.48811041,3006.4,3004.8,3.50504283]
[1769634134363,33.13123109,3006.5,3004.8,3.50504283]
[1769634134563,3.64312068,3006.4,3004.8,3.50504283]
[1769634134867,3.64312068,3006.3,3004.8,3.50504283]
[1769634135061,3.64312068,3005.9,3004.3,3.50504283]
[1769634135455,3.64312068,3005.8,3004.3,3.50504283]
[1769634135663,3.64312068,3005.7,3004.3,3.50504283]
[1769634138358,29.48811041,3006.0,3004.3,3.50504283]
[1769634138564,29.48811041,3006.1,3004.5,3.50504283]
[1769634138763,3.91254845,3006.0,3004.5,3.50504283]
[1769634139063,3.91254845,3005.9,3004.5,3.50504283]
[1769634139249,3.64312068,3006.2,3004.5,3.50504283]
[1769634139454,3.64312068,3006.0,3004.5,3.50504283]
[1769634139656,7.55598358,3005.9,3004.5,3.50504283]
[1769634139857,3.9128629,3005.8,3004.5,3.50504283]
[1769634140164,3.64312068,3005.9,3004.5,3.50504283]
[1769634140365,3.64312068,3005.7,3004.5,3.50504283]
[1769634140664,3.91212324,3005.6,3004.5,3.50504283]
[1769634140964,3.64312068,3005.7,3004.5,3.50504283]
[1769634141160,3.91215867,3005.6,3004.5,3.50504283]
[1769634141362,33.13123109,3006.0,3004.5,3.50504283]
[1769634141564,7.5547198,3005.9,3004.5,3.50504283]
[1769634141761,33.13123109,3006.3,3004.5,3.67169283]
[1769634141966,3.64312068,3006.1,3004.5,3.67169283]
[1769634142160,3.64312068,3005.9,3004.5,3.50504283]
[1769634142357,3.91203744,3005.8,3004.5,3.50504283]
[1769634142558,3.91203744,3005.7,3004.5,3.50504283]
[1769634142753,7.5537927,3005.6,3004.5,3.50504283]
[1769634143066,7.5537927,3005.5,3004.1,3.50504283]
[1769634143262,3.64312068,3005.5,3004.1,3.50504283]
[1769634143465,3.64312068,3005.3,3003.5,3.50504283]
[1769634143765,7.553478,3005.2,3003.5,3.50504283]
[1769634143966,3.64312068,3005.2,3003.5,3.50504283]
[1769634144767,3.64312068,3005.0,3003.5,3.50504283]
[1769634144963,3.34088049,3004.8,3003.5,3.50504283]
[1769634145161,29.65473041,3005.1,3003.5,3.50504283]
[1769634145162,3.34088049,3004.6,3003.5,3.50504283]
[1769634145362,3.34404988,3004.6,3003.4,0.00425829]
[1769634145563,3.34088049,3004.4,3003.4,0.00425829]
[1769634146064,3.34088049,3004.4,3003.0,0.53485484]
[1769634146263,3.34088049,3004.2,3003.0,0.53485484]
[1769634146767,3.34088049,3004.0,3003.0,0.53485484]
[1769634147167,3.34088049,3004.0,3003.0,0.53829077]
[1769634147771,3.34088049,3004.0,3002.3,3.66850056]
[1769634147971,3.35578808,3003.8,3001.7,3.67259895]
[1769634148166,3.35578808,3003.5,3001.7,3.67259895]
[1769634148466,29.48811041,3004.1,3002.2,3.67259895]
[1769634148668,3.35895747,3004.6,3002.5,3.67259895]
[1769634148866,3.35895747,3004.6,3002.9,3.67259895]
[1769634149065,3.35895747,3004.6,3003.1,3.67259895]
[1769634149273,0.00316939,3004.6,3003.1,3.67259895]
[1769634149469,0.00316939,3004.6,3003.1,3.83932895]
[1769634149673,3.89366308,3004.5,3002.3,3.67259895]
[1769634149972,3.35578808,3004.3,3002.5,3.83935895]
[1769634150171,3.35578808,3004.3,3002.7,3.67259895]
[1769634151266,0.00316939,3004.6,3003.2,3.67259895]
[1769634151463,3.35895747,3004.6,3003.2,3.67259895]
[1769634151664,0.00316939,3004.6,3003.2,3.67259895]
[1769634152463,3.35578808,3005.5,3003.6,3.67259895]
[1769634152668,3.35578808,3005.3,3003.6,3.67259895]
[1769634152868,3.35578808,3005.1,3003.6,3.67259895]
[1769634153279,3.35578808,3005.1,3002.9,3.67259895]
[1769634153472,3.35865709,3005.1,3002.9,3.67259895]
[1769634154073,3.35578808,3004.6,3002.9,3.67259895]
[1769634154274,3.35578808,3004.5,3002.9,3.67259895]
[1769634155576,3.35578808,3004.5,3002.3,0.16677]
[1769634155577,3.35578808,3004.5,3002.5,3.67259895]
[1769634155777,3.35578808,3004.3,3002.5,3.67259895]
[1769634157081,3.35578808,3004.6,3002.5,3.83935895]
[1769634157472,3.35578808,3004.4,3002.5,3.67259895]
[1769634157672,3.35578808,3004.2,3002.5,3.67259895]
[1769634157870,3.35578808,3004.0,3002.5,3.67259895]
[1769634158068,3.35578808,3004.0,3002.2,0.00375118]
[1769634158374,3.35578808,3003.8,3002.2,0.00375118]
[1769634158580,3.52248808,3003.6,3002.2,0.00375118]
[1769634158774,3.35578808,3003.4,3001.6,3.67259895]
[1769634159675,3.35578808,3003.4,3001.6,3.67557151]
[1769634160587,3.35578808,3003.0,3001.2,3.67259895]
[1769634161573,3.52252808,3003.0,3000.7,0.16686]
[1769634161775,3.52252808,3003.0,3001.2,0.00372696]
[1769634162085,3.35578808,3002.7,3001.2,0.00372696]
[1769634162285,3.35578808,3002.5,3001.2,0.00372696]
[1769634162475,3.35578808,3002.3,3000.5,3.67259895]
[1769634162783,3.35578808,3002.1,3000.5,3.67259895]
[1769634163375,3.35578808,3002.1,3000.5,3.6758886]
[1769634163583,3.35578808,3002.6,3000.5,3.6758886]
[1769634163974,44.15578808,3002.5,3000.5,3.6758886]
[1769634164483,3.35578808,3002.4,3000.5,3.6758886]
[1769634165584,3.35578808,3001.6,3000.4,1.60539708]
[1769634165884,3.35578808,3001.6,3000.4,5.27799603]
[1769634166085,3.35578808,3002.4,3000.5,3.67259895]
[1769634166383,3.35578808,3002.4,3000.8,3.67259895]
[1769634166574,3.35578808,3002.4,3000.8,3.67671541]
[1769634166772,0.00319618,3002.7,3001.4,3.67259895]
[1769634167285,0.00319618,3002.7,3000.8,0.00411646]
[1769634167286,3.35578808,3002.3,3000.9,3.67259895]
[1769634167578,0.00319618,3002.7,3000.8,0.00411646]
[1769634167579,3.35578808,3002.0,3000.8,0.00411646]
[1769634167781,3.35578808,3002.0,3000.5,3.67259895]
[1769634168590,0.16676,3002.6,3000.4,1.60539708]
[1769634168591,3.35578808,3002.3,3000.4,1.60539708]
[1769634168779,3.35578808,3001.7,3000.5,0.00259844]
[1769634169286,7.22409435,3002.7,3000.4,1.60539708]
[1769634169287,3.35578808,3001.4,3000.4,1.60539708]
[1769634169984,40.8,3001.5,3000.5,3.67259895]
[1769634170483,3.35578808,3002.2,3000.5,3.67259895]
[1769634170682,3.35578808,3002.2,3000.5,3.67505681]
[1769634171278,3.35578808,3001.8,3000.5,0.00245786]
[1769634172187,3.52258808,3001.8,3000.5,0.00245786]
[1769634172989,3.35578808,3001.6,3000.5,0.00245786]
[1769634174888,3.35578808,3001.6,3000.4,1.60539708]
[1769634175286,3.35578808,3001.6,2999.8,3.34417256]
[1769634175988,3.35578808,3001.6,2999.8,3.34657901]
[1769634176389,44.30590117,3001.5,3000.0,3.34417256]
[1769634176889,3.50590117,3001.4,3000.0,3.34417256]
[1769634178889,3.50590117,3001.4,2999.8,0.00240645]
[1769634179092,3.50590117,3001.4,2999.8,3.34657901]
[1769634180693,3.67273117,3001.4,2999.8,0.00240645]
[1769634181183,3.50590117,3001.2,2999.8,0.00240645]